bitfinex/quotes_BTCUSD_20240712
["timestamp","ask_amount","ask_price","bid_price","bid_amount"]
[1720795722197,0.21619844,58011.0,58010.0,0.04598166]
[1720795722419,0.56096044,58011.0,58010.0,0.04598166]
[1720795722634,0.56096044,58011.0,58010.0,0.03704166]
[1720795722635,0.90572244,58011.0,58010.0,0.03704166]
[1720795723009,0.90572244,58011.0,58010.0,0.015013]
[1720795723211,1.18958438,58011.0,58010.0,0.001013]
[1720795723318,1.53534638,58011.0,58010.0,0.029013]
[1720795723762,1.47534638,58011.0,58010.0,0.029013]
[1720795723976,0.64010584,58011.0,58010.0,0.029013]
[1720795724181,0.64010584,58011.0,58010.0,0.04596554]
[1720795724388,0.64206937,58011.0,58010.0,0.023953]
[1720795724604,0.64206937,58011.0,58010.0,0.03396554]
[1720795724978,0.64206937,58011.0,58010.0,0.55121754]
[1720795724979,0.12072637,58011.0,58010.0,0.55121754]
[1720795725191,0.11746284,58011.0,58010.0,1.35887529]
[1720795725397,0.0003,58014.0,58011.0,0.572943]
[1720795725602,0.0003,58014.0,58013.0,0.181415]
[1720795725801,0.03974174,58014.0,58013.0,0.526165]
[1720795726082,0.03974174,58014.0,58013.0,0.53417358]
[1720795726298,0.03974174,58014.0,58013.0,0.87892358]
[1720795727231,0.0045,58014.0,58013.0,0.54807358]
[1720795727434,0.0055,58014.0,58013.0,0.04494858]
[1720795727658,0.14933411,58014.0,58013.0,0.20342358]
[1720795727858,0.14413411,58014.0,58013.0,0.87892358]
[1720795728134,0.14413411,58014.0,58013.0,0.89292358]
[1720795728135,0.02829693,58014.0,58013.0,0.89292358]
[1720795728462,0.02829693,58014.0,58013.0,0.54817358]
[1720795728463,0.1178646,58014.0,58013.0,0.54817358]
[1720795728665,0.14486062,58014.0,58013.0,0.54817358]
[1720795729143,0.14486062,58014.0,58013.0,1.01679494]
[1720795729445,0.14486062,58014.0,58013.0,0.90692358]
[1720795729690,0.04006033,58014.0,58013.0,1.35407358]
[1720795729888,0.04006033,58014.0,58013.0,1.36807358]
[1720795730304,0.04006033,58014.0,58013.0,1.43717358]
[1720795730305,0.03876033,58014.0,58013.0,1.43717358]
[1720795730510,0.0003,58022.0,58021.0,0.00904]
[1720795730734,0.0272918,58022.0,58021.0,0.525093]
[1720795730904,0.0272918,58022.0,58021.0,0.87780028]
[1720795731209,0.0269918,58022.0,58021.0,1.55724746]
[1720795731409,0.0003,58030.0,58029.0,0.172327]
[1720795731642,0.0042,58032.0,58029.0,0.172327]
[1720795731643,0.0042,58031.0,58030.0,0.868662]
[1720795731833,0.0003,58032.0,58030.0,0.868662]
[1720795731834,0.0003,58032.0,58031.0,0.524004]
[1720795732038,0.14699587,58032.0,58031.0,0.868647]
[1720795732201,0.14699587,58032.0,58031.0,0.87664423]
[1720795732515,0.14699587,58032.0,58031.0,0.01503723]
[1720795732698,0.14699587,58032.0,58031.0,0.53200123]
[1720795732893,0.14699587,58032.0,58031.0,0.01503723]
[1720795733221,0.31931387,58032.0,58031.0,0.01503723]
[1720795733372,0.31931387,58032.0,58031.0,0.00799723]
[1720795733577,0.172324,58030.0,58029.0,0.00704]
[1720795733777,0.31901987,58030.0,58029.0,0.01503723]
[1720795733989,0.31901987,58030.0,58029.0,0.00704]
[1720795734190,0.31901987,58030.0,58029.0,0.01503723]
[1720795734591,0.31901987,58030.0,58029.0,0.00799723]
[1720795735079,0.20351119,58030.0,58029.0,0.00799723]
[1720795735217,0.31923203,58030.0,58029.0,0.01699723]
[1720795735415,0.38303203,58030.0,58029.0,0.01699723]
[1720795735612,1.10331752,58030.0,58029.0,0.01699723]
[1720795735814,1.27073697,58030.0,58029.0,0.009]
[1720795736034,1.61538597,58030.0,58029.0,0.009]
[1720795736209,1.61538597,58030.0,58029.0,0.023]
[1720795736411,1.61538597,58030.0,58029.0,0.009]
[1720795736614,1.94015132,58030.0,58029.0,0.009]
[1720795736815,2.28480032,58030.0,58029.0,0.023]
[1720795737160,0.668771,58019.0,58018.0,0.00704]
[1720795737369,0.0042,58015.0,58014.0,0.69009611]
[1720795737578,0.06934098,58015.0,58014.0,0.00704]
[1720795737810,0.14714991,58015.0,58014.0,0.00704]
[1720795738002,0.22482242,58015.0,58014.0,0.00704]
[1720795738434,0.14744991,58015.0,58014.0,0.00704]
[1720795738665,0.14744991,58015.0,58010.0,0.345779]
[1720795738666,1.211167,58011.0,58010.0,0.001013]
[1720795738869,1.61691691,58011.0,58010.0,0.001013]
[1720795739281,2.11643413,58011.0,58010.0,0.001013]
[1720795739484,2.97582631,58011.0,58010.0,0.001013]
[1720795739689,2.52487631,58011.0,58010.0,0.001013]
[1720795740230,2.33191631,58011.0,58010.0,0.001013]
[1720795740646,1.61691691,58011.0,58010.0,0.001013]
[1720795741041,1.15215491,58011.0,58010.0,0.001013]
[1720795741527,0.80739291,58011.0,58010.0,0.001013]
[1720795741741,0.81239291,58011.0,58010.0,0.002013]
[1720795741947,1.42707891,58011.0,58010.0,0.001013]
[1720795742152,1.3903182,58011.0,58010.0,0.001013]
[1720795742478,1.3903182,58011.0,58010.0,0.008013]
[1720795742628,1.3553942,58011.0,58010.0,0.008013]
[1720795742841,0.80939291,58011.0,58010.0,0.008013]
[1720795743037,0.14944991,58011.0,58010.0,0.19545426]
[1720795743416,0.14524991,58011.0,58010.0,0.19545426]
[1720795743620,0.14524991,58011.0,58010.0,0.54022226]
[1720795743621,0.24849422,58011.0,58010.0,0.54022226]
[1720795743831,0.24849422,58011.0,58010.0,0.18845426]
[1720795743832,0.13673097,58011.0,58010.0,0.18845426]
[1720795744008,0.12158747,58011.0,58010.0,0.18845426]
[1720795744208,0.03995476,58011.0,58010.0,0.54122226]
[1720795744408,0.13355594,58013.0,58012.0,0.00704]
[1720795744600,0.14891114,58013.0,58012.0,0.01504827]
[1720795744865,0.14861114,58013.0,58012.0,0.01504827]
[1720795745063,0.14891114,58013.0,58012.0,0.01504827]
[1720795745264,0.14891114,58013.0,58012.0,0.01404827]
[1720795745482,0.28093061,58013.0,58012.0,0.01404827]
[1720795745695,0.33358346,58013.0,58012.0,0.01404827]
[1720795745920,0.14891114,58013.0,58012.0,0.00800827]
[1720795746131,0.14891114,58013.0,58012.0,0.01500827]
[1720795746132,1.20698614,58013.0,58012.0,0.01500827]
[1720795746332,1.55173614,58013.0,58012.0,0.007]
[1720795746775,1.55144004,58013.0,58012.0,0.007]
[1720795746974,1.55144004,58013.0,58012.0,0.019]
[1720795747187,1.24204227,58013.0,58012.0,0.019]
[1720795747399,1.08714973,58013.0,58012.0,0.019]
[1720795747603,1.27034973,58013.0,58012.0,0.019]
[1720795747806,1.94022967,58013.0,58012.0,0.019]
[1720795748006,1.78533713,58013.0,58012.0,0.019]
[1720795749290,1.61509973,58013.0,58012.0,0.019]
[1720795749494,1.49509973,58013.0,58012.0,0.019]
[1720795749725,1.61509973,58013.0,58012.0,0.019]
[1720795750364,1.35569973,58013.0,58012.0,0.019]
[1720795750585,1.01189422,58013.0,58012.0,0.019]
[1720795752278,1.01189422,58013.0,58012.0,0.02504]
[1720795752482,1.01189422,58013.0,58012.0,0.03306806]
[1720795752682,1.01230741,58013.0,58012.0,0.03306806]
[1720795752833,1.01230741,58013.0,58012.0,0.02702806]
[1720795752834,1.15439175,58013.0,58012.0,0.02702806]
[1720795753034,1.01230741,58013.0,58012.0,0.019]
[1720795753319,0.15043241,58013.0,58012.0,0.02504]
[1720795753546,0.15043241,58013.0,58012.0,0.88693]
[1720795753547,0.14593241,58013.0,58012.0,0.88693]
[1720795753730,0.14623241,58013.0,58012.0,0.89495737]
[1720795753929,0.11726632,58013.0,58012.0,1.15745737]
[1720795754130,0.11756632,58013.0,58012.0,1.04165737]
[1720795754285,0.11756632,58013.0,58012.0,0.55020137]
[1720795754286,0.14722558,58013.0,58012.0,0.55020137]
[1720795754485,0.22583736,58013.0,58012.0,0.19940537]
[1720795754691,0.22583736,58013.0,58012.0,0.20544537]
[1720795755102,0.22583736,58013.0,58012.0,0.19940537]
[1720795755307,0.12266022,58013.0,58012.0,0.02702737]
[1720795755635,0.12266022,58013.0,58012.0,0.20544537]
[1720795755833,0.46741022,58013.0,58012.0,0.02702737]
[1720795755993,1.01153328,58013.0,58012.0,0.019]
[1720795756222,1.14670318,58013.0,58012.0,0.019]
[1720795756692,0.32211139,58013.0,58012.0,0.019]
[1720795756875,0.27872143,58013.0,58012.0,0.197418]
[1720795757203,0.27911171,58013.0,58012.0,0.03306338]
[1720795757432,0.16048088,58013.0,58012.0,0.30355235]
[1720795757584,0.27911201,58013.0,58012.0,0.44345235]
[1720795757787,0.27911201,58013.0,58012.0,0.34534138]
[1720795758191,0.15012919,58013.0,58012.0,0.34534138]
[1720795758395,0.27492289,58013.0,58012.0,1.03485338]
[1720795758600,0.11893113,58013.0,58012.0,1.03485338]
[1720795758797,0.14592787,58013.0,58012.0,1.03485338]
[1720795759208,0.27492157,58013.0,58012.0,1.03485338]
[1720795759741,0.14592787,58013.0,58012.0,1.03485338]
[1720795760408,0.02729674,58013.0,58012.0,1.52618495]
[1720795760560,0.0401804,58013.0,58012.0,1.37960938]
[1720795760759,0.11757901,58013.0,58012.0,1.37960938]
[1720795760959,0.11757845,58013.0,58012.0,1.40260938]
[1720795761169,0.11757845,58013.0,58012.0,1.51840938]
[1720795761170,0.11757691,58013.0,58012.0,1.51840938]
[1720795761347,0.11757691,58013.0,58012.0,1.38360938]
[1720795761771,0.11757691,58013.0,58012.0,1.38860938]
[1720795761945,0.14758188,58013.0,58012.0,1.04385338]
[1720795762362,0.12331116,58013.0,58012.0,1.04385338]
[1720795762574,0.12331116,58013.0,58012.0,0.69909738]
[1720795762779,0.27930138,58013.0,58012.0,0.55919738]
[1720795762993,0.27900138,58013.0,58012.0,0.55919738]
[1720795763186,0.27930138,58013.0,58012.0,0.55919738]
[1720795763380,0.15030768,58013.0,58012.0,0.55919738]
[1720795763786,0.27933435,58013.0,58012.0,0.55919738]
[1720795764324,0.27918679,58013.0,58012.0,0.55919738]
[1720795764510,0.27948679,58013.0,58012.0,0.55919738]
[1720795765108,0.15046012,58013.0,58012.0,0.55919738]
[1720795765519,0.2483021,58013.0,58012.0,0.90395338]
[1720795765724,0.1192636,58013.0,58012.0,0.90395338]
[1720795766225,0.27529882,58013.0,58012.0,0.90395338]
[1720795766659,0.14651312,58013.0,58012.0,0.55919738]
[1720795767194,0.14651366,58013.0,58012.0,0.90395338]
[1720795767394,0.27555767,58013.0,58012.0,0.90395338]
[1720795767600,0.14651366,58013.0,58012.0,0.90395338]
[1720795768802,0.15071366,58013.0,58012.0,0.90395338]
[1720795768999,0.27975767,58013.0,58012.0,0.90395338]
[1720795769552,0.27555767,58013.0,58012.0,0.90395338]
[1720795769767,0.27526417,58013.0,58012.0,1.36450938]
[1720795770060,0.27526417,58013.0,58012.0,1.51060938]
[1720795770061,0.22363914,58013.0,58012.0,1.51060938]
[1720795770267,0.22363914,58013.0,58012.0,1.39480938]
[1720795770401,0.24831765,58013.0,58012.0,1.39480938]
[1720795770840,0.14507996,58013.0,58012.0,1.39480938]
[1720795771367,0.24831765,58013.0,58012.0,1.39480938]
[1720795771719,0.14507996,58013.0,58012.0,1.39480938]
[1720795772121,0.24831765,58013.0,58012.0,1.39480938]
[1720795772322,0.14507996,58013.0,58012.0,1.39480938]
[1720795772528,0.24831765,58013.0,58012.0,1.39480938]
[1720795773530,0.14507996,58013.0,58012.0,1.39480938]
[1720795773765,0.14525423,58013.0,58012.0,1.39480938]
[1720795774040,0.14525423,58013.0,58012.0,1.31490938]
[1720795774241,0.24849625,58013.0,58012.0,1.31490938]
[1720795774683,0.14525488,58013.0,58012.0,1.31490938]
[1720795774995,0.25269625,58013.0,58012.0,1.31490938]
[1720795775460,0.18795968,58013.0,58012.0,0.03602338]
[1720795775651,0.97278468,58013.0,58012.0,0.03602338]
[1720795775847,1.66228468,58013.0,58012.0,0.028]
[1720795776409,1.54269021,58013.0,58012.0,0.028]
[1720795776657,1.67874331,58013.0,58012.0,0.028]
[1720795777012,1.62448654,58013.0,58012.0,0.014]
[1720795777216,1.62448654,58013.0,58012.0,0.021]
[1720795777838,1.79876822,58013.0,58012.0,0.021]
[1720795778033,1.79472394,58013.0,58012.0,0.021]
[1720795779900,1.62448654,58013.0,58012.0,0.021]
[1720795780294,1.62300184,58013.0,58012.0,0.007]
[1720795780651,0.14867684,58013.0,58012.0,0.009]
[1720795780841,0.14867684,58013.0,58012.0,0.01504]
[1720795780984,0.32105184,58013.0,58012.0,0.02254728]
[1720795781184,0.32105184,58013.0,58012.0,0.02054728]
[1720795781933,0.32105184,58013.0,58012.0,0.01354728]
[1720795781934,0.14867684,58013.0,58012.0,0.01354728]
[1720795782106,0.32105184,58013.0,58012.0,0.02854728]
[1720795783362,0.14867684,58013.0,58012.0,0.02854728]
[1720795783568,0.03149672,58013.0,58012.0,0.02854728]
[1720795783769,0.14898794,58013.0,58012.0,0.02654728]
[1720795784177,0.14899137,58013.0,58012.0,0.03454728]
[1720795785017,0.32136637,58013.0,58012.0,0.03454728]
[1720795785200,0.75017523,58013.0,58012.0,0.02850728]
[1720795785624,0.92466349,58013.0,58012.0,0.02850728]
[1720795785845,0.75017523,58013.0,58012.0,0.02850728]
[1720795786180,0.63268058,58013.0,58012.0,0.02850728]
[1720795786415,0.75048523,58013.0,58012.0,0.02850728]
[1720795786955,0.75059492,58013.0,58012.0,0.02850728]
[1720795787523,1.09534492,58013.0,58012.0,0.02850728]
[1720795788925,1.21534492,58013.0,58012.0,0.02850728]
[1720795789122,1.09534492,58013.0,58012.0,0.02850728]
[1720795789567,0.66653606,58013.0,58012.0,0.03454728]
[1720795789761,0.66653606,58013.0,58012.0,0.02704]
[1720795789970,0.32178606,58013.0,58012.0,0.0345654]
[1720795790406,0.14521106,58013.0,58012.0,1.0934684]
[1720795790805,0.14491106,58013.0,58012.0,1.0934684]
[1720795791031,0.14491106,58013.0,58012.0,1.7236244]
[1720795791208,0.14574106,58013.0,58012.0,2.0603804]
[1720795791434,0.14574106,58013.0,58012.0,2.2306178]
[1720795791683,0.14574106,58013.0,58012.0,2.0446178]
[1720795792023,0.14574106,58013.0,58012.0,1.8743804]
[1720795792208,0.04025056,58013.0,58012.0,1.8743804]
[1720795792628,0.04025056,58013.0,58012.0,1.8473804]
[1720795792828,0.04025056,58013.0,58012.0,1.8717792]
[1720795793275,0.00083,58013.0,58012.0,1.7419792]
[1720795793477,0.00083,58013.0,58012.0,1.3742232]
[1720795793673,0.00503,58013.0,58012.0,0.5560112]
[1720795793971,0.522455,58013.0,58012.0,0.0144784]
[1720795794174,0.987205,58013.0,58012.0,0.0224384]
[1720795794373,1.09040024,58013.0,58012.0,0.0224384]
[1720795794529,1.09040024,58013.0,58012.0,0.000913]
[1720795794733,1.24008426,58013.0,58012.0,0.000913]
[1720795794935,1.09040024,58013.0,58012.0,0.000913]
[1720795795514,1.09040024,58013.0,58012.0,0.014913]
[1720795795717,1.43515024,58013.0,58012.0,0.014913]
[1720795795843,1.43515024,58013.0,58012.0,0.028913]
[1720795796050,1.43515024,58013.0,58012.0,0.014913]
[1720795796251,1.43515024,58013.0,58012.0,0.000913]
[1720795796446,1.58483526,58013.0,58012.0,0.008913]
[1720795796697,0.10852524,58013.0,58012.0,0.008913]
[1720795796897,0.20470024,58013.0,58012.0,0.01446426]
[1720795797133,0.02812524,58013.0,58012.0,0.006953]
[1720795797331,0.02782524,58013.0,58012.0,0.551087]
[1720795797509,0.02782524,58013.0,58012.0,1.25011307]
[1720795797664,0.00083,58013.0,58012.0,1.60415649]
[1720795797886,0.00083,58013.0,58012.0,1.50561307]
[1720795798091,0.00083,58013.0,58012.0,1.50361307]
[1720795798606,0.00083,58013.0,58012.0,1.50561307]
[1720795798813,0.00083,58013.0,58012.0,2.02060647]
[1720795798999,0.00083,58013.0,58012.0,2.46470647]
[1720795799167,0.00083,58013.0,58012.0,2.28670647]
[1720795799572,0.00083,58013.0,58012.0,2.10846907]
[1720795800526,0.00379353,58029.0,58028.0,1.005092]
[1720795800724,0.02811775,58029.0,58028.0,1.005092]
[1720795800915,0.02811775,58029.0,58028.0,1.35725024]
[1720795801114,0.02781775,58029.0,58028.0,1.52744346]
[1720795801557,0.02811775,58029.0,58028.0,1.52744346]
[1720795801763,0.02811775,58029.0,58028.0,1.21985024]
[1720795801965,0.00113,58029.0,58028.0,1.21985024]
[1720795802183,0.00083,58029.0,58028.0,1.33565024]
[1720795802667,0.00083,58029.0,58028.0,1.34965024]
[1720795802986,0.00083,58029.0,58028.0,1.36365024]
[1720795803223,0.00113,58029.0,58028.0,1.40408764]
[1720795803431,0.03963235,58029.0,58028.0,1.21985024]
[1720795803644,0.03959537,58029.0,58028.0,1.21985024]
[1720795803845,0.03959537,58029.0,58028.0,1.23385024]
[1720795804045,0.03929537,58029.0,58028.0,1.50508346]
[1720795804780,0.03929537,58029.0,58028.0,1.51908346]
[1720795805203,0.03959537,58029.0,58028.0,1.23385024]
[1720795805606,0.03959537,58029.0,58028.0,1.24785024]
[1720795805814,0.04379537,58029.0,58028.0,1.24785024]
[1720795806023,0.03959537,58029.0,58028.0,1.23385024]
[1720795806226,0.03929537,58029.0,58028.0,1.24785024]
[1720795806422,0.03959537,58029.0,58028.0,1.24785024]
[1720795807003,0.03959537,58029.0,58028.0,1.40812452]
[1720795807402,0.09114718,58029.0,58028.0,1.40812452]
[1720795807608,0.03959537,58029.0,58028.0,1.23385024]
[1720795807805,0.03983659,58029.0,58028.0,1.23385024]
[1720795808417,0.09137977,58029.0,58028.0,1.23385024]
[1720795808645,0.09557977,58029.0,58028.0,0.19986724]
[1720795808960,0.09557977,58029.0,58028.0,0.01353724]
[1720795809162,0.12136425,58029.0,58028.0,0.02753724]
[1720795809359,0.04403659,58029.0,58028.0,0.02753724]
[1720795809581,0.12010835,58029.0,58028.0,0.93614692]
[1720795809774,0.09823679,58029.0,58028.0,0.88917198]
[1720795809966,0.12134482,58029.0,58028.0,0.87517198]
[1720795810125,0.12134482,58029.0,58028.0,0.88917198]
[1720795810329,0.12133714,58029.0,58028.0,0.88917198]
[1720795811158,0.12129723,58029.0,58028.0,0.90317198]
[1720795811539,0.08262963,58029.0,58028.0,0.90317198]
[1720795811764,0.08262963,58029.0,58028.0,0.88917198]
[1720795811765,0.12120078,58029.0,58028.0,0.88917198]
[1720795811955,0.59557131,58029.0,58028.0,0.02147998]
[1720795812165,1.23204085,58029.0,58028.0,0.03547998]
[1720795812334,1.61765732,58029.0,58028.0,0.028]
[1720795812532,1.49765732,58029.0,58028.0,0.028]
[1720795812740,1.15300232,58029.0,58028.0,0.028]
[1720795813499,1.15300232,58029.0,58028.0,0.014]
[1720795813700,1.44323972,58029.0,58028.0,0.014]
[1720795813896,1.59883898,58029.0,58028.0,0.028]
[1720795814208,1.94349398,58029.0,58028.0,0.028]
[1720795814384,1.86661095,58029.0,58028.0,0.014]
[1720795814591,2.8730161,58029.0,58028.0,0.014]
[1720795814839,0.241175,58013.0,58012.0,1.257953]
[1720795815016,0.21927125,58013.0,58012.0,0.006953]
[1720795815168,0.21927125,58013.0,58012.0,0.18633961]
[1720795815373,0.21927125,58013.0,58012.0,0.006953]
[1720795815632,0.22347125,58013.0,58012.0,0.01396161]
[1720795815792,0.1473838,58013.0,58012.0,0.18633961]
[1720795816000,0.1473838,58013.0,58012.0,0.01396161]
[1720795816201,0.1483838,58013.0,58012.0,0.02796161]
[1720795816407,0.25145968,58013.0,58012.0,0.02796161]
[1720795816634,0.25045968,58013.0,58012.0,0.53109561]
[1720795816834,0.25045968,58013.0,58012.0,0.98605011]
[1720795817030,0.25145968,58013.0,58012.0,0.54509561]
[1720795817190,0.22446133,58013.0,58012.0,0.54509561]
[1720795817597,0.25341435,58013.0,58012.0,0.54509561]
[1720795817796,0.25241435,58013.0,58012.0,0.53109561]
[1720795818003,0.72793882,58013.0,58012.0,0.00792161]
[1720795818201,0.66646148,58013.0,58012.0,0.00792161]
[1720795818412,1.13121148,58013.0,58012.0,0.00792161]
[1720795818662,1.47596148,58013.0,58012.0,0.00792161]
[1720795819283,1.47796148,58013.0,58012.0,0.02392161]
[1720795819490,1.47796148,58013.0,58012.0,0.016913]
[1720795819755,1.64121931,58013.0,58012.0,0.016913]
[1720795819863,1.63921931,58013.0,58012.0,0.000913]
[1720795820267,1.64021931,58013.0,58012.0,0.007913]
[1720795820734,1.63944892,58013.0,58012.0,0.007913]
[1720795820934,1.64044892,58013.0,58012.0,0.020913]
[1720795821158,1.24012304,58013.0,58012.0,0.020913]
[1720795821349,1.35718706,58013.0,58012.0,0.020913]
[1720795822432,1.35618706,58013.0,58012.0,0.007913]
[1720795822837,1.35618706,58013.0,58012.0,0.013913]
[1720795822838,1.35718706,58013.0,58012.0,0.013913]
[1720795823606,1.52036592,58013.0,58012.0,0.013913]
[1720795823812,1.64036592,58013.0,58012.0,0.013913]
[1720795824197,1.78116592,58013.0,58012.0,0.013913]
[1720795825601,1.61798706,58013.0,58012.0,0.013913]
[1720795825814,1.96273706,58013.0,58012.0,0.013913]
[1720795826976,2.06273706,58013.0,58012.0,0.013913]
[1720795827171,1.96273706,58013.0,58012.0,0.013913]
[1720795827382,2.05924482,58013.0,58012.0,0.013913]
[1720795827585,2.22948222,58013.0,58012.0,0.013913]
[1720795828356,3.63696581,58013.0,58012.0,0.013913]
[1720795828559,0.1245,57998.0,57996.0,0.009108]
[1720795828798,1.61592493,57998.0,57996.0,0.009108]
[1720795828993,2.47584033,57998.0,57997.0,0.01452515]
[1720795829220,2.28188033,57998.0,57997.0,0.00746056]
[1720795829432,2.12728222,57998.0,57997.0,0.00746056]
[1720795829801,2.14929692,57998.0,57997.0,0.00746056]
[1720795830004,2.34325692,57998.0,57997.0,0.00846056]
[1720795830291,3.04269403,57998.0,57997.0,0.00846056]
[1720795830418,3.22389714,57998.0,57997.0,0.00846056]
[1720795830622,3.33915177,57998.0,57997.0,0.00846056]
[1720795831051,3.33917267,57998.0,57997.0,0.00846056]
[1720795831375,3.68401167,57998.0,57997.0,0.00846056]
[1720795831579,2.415107,57997.0,57996.0,5.6e-07]
[1720795831778,1.178063,57993.0,57992.0,0.0045]
[1720795831983,3.10584113,57993.0,57992.0,0.0045]
[1720795832144,3.96581653,57993.0,57992.0,0.0045]
[1720795832922,2.85087513,57993.0,57992.0,0.0045]
[1720795833066,2.64700913,57993.0,57992.0,0.0045]
[1720795833285,2.92556466,57993.0,57992.0,0.0045]
[1720795833489,2.79719632,57993.0,57992.0,0.0045]
[1720795833711,2.80653583,57993.0,57992.0,0.0055]
[1720795834083,2.97677323,57993.0,57992.0,0.0055]
[1720795834280,2.68800455,57993.0,57992.0,0.0055]
[1720795834552,2.53931001,57993.0,57992.0,0.0055]
[1720795834751,2.66773315,57993.0,57992.0,0.0055]
[1720795834892,2.66763315,57993.0,57992.0,0.0055]
[1720795835296,2.64191115,57993.0,57992.0,0.0055]
[1720795835492,2.81214855,57993.0,57992.0,0.0055]
[1720795835951,2.64191115,57993.0,57992.0,0.0055]
[1720795836256,2.53921001,57993.0,57992.0,0.0055]
[1720795836468,2.38924401,57993.0,57992.0,0.0055]
[1720795836879,2.53531001,57993.0,57992.0,0.0055]
[1720795837085,2.19038765,57993.0,57992.0,0.0055]
[1720795837274,2.41195799,57993.0,57992.0,0.0055]
[1720795837465,2.36062505,57993.0,57992.0,0.0055]
[1720795837820,2.4375249,57993.0,57992.0,0.0055]
[1720795838017,2.43751049,57993.0,57992.0,0.0055]
[1720795838421,2.36052505,57993.0,57992.0,0.0055]
[1720795838620,2.19028765,57993.0,57992.0,0.0055]
[1720795838851,2.09553137,57993.0,57992.0,0.0055]
[1720795839021,2.01722361,57993.0,57992.0,0.0055]
[1720795840147,1.92935931,57993.0,57992.0,0.0055]
[1720795840351,1.95765332,57993.0,57992.0,0.0055]
[1720795840556,1.93063819,57993.0,57992.0,0.0055]
[1720795840755,1.93063569,57993.0,57992.0,0.0055]
[1720795840969,1.93053569,57993.0,57992.0,0.0055]
[1720795843013,1.34336669,57993.0,57992.0,0.0055]
[1720795843441,1.228241,57993.0,57992.0,0.0055]
[1720795843665,1.34261442,57993.0,57992.0,0.0055]
[1720795843879,1.33841442,57993.0,57992.0,0.0055]
[1720795844083,1.26163751,57993.0,57992.0,0.0055]
[1720795844289,0.91676851,57993.0,57992.0,0.0055]
[1720795844495,0.57189951,57993.0,57992.0,0.0055]
[1720795844701,0.05479651,57993.0,57992.0,0.11088876]
[1720795844901,0.05479651,57993.0,57992.0,0.31088876]
[1720795845121,0.04779651,57993.0,57992.0,0.31088876]
[1720795845326,0.03879651,57993.0,57992.0,0.36578876]
[1720795845459,0.04369651,57993.0,57992.0,0.53822576]
[1720795845659,0.04269651,57993.0,57992.0,0.53822576]
[1720795846106,0.03869651,57993.0,57992.0,1.36480604]
[1720795846308,0.001,57993.0,57992.0,1.90798104]
[1720795846479,0.001,57993.0,57992.0,2.21585604]
[1720795846480,0.002,57993.0,57992.0,2.21585604]
[1720795846687,0.002,57993.0,57992.0,2.07902576]
[1720795846895,0.1025956,58000.0,57992.0,0.87196376]
[1720795847090,0.1025956,58000.0,57999.0,0.58268182]
[1720795847091,0.1026956,58000.0,57999.0,0.58268182]
[1720795847302,0.1026956,58000.0,57999.0,1.27234782]
[1720795847559,0.65732302,58000.0,57999.0,0.0070962]
[1720795847998,0.172519,57998.0,57997.0,0.21326582]
[1720795848200,0.20990642,57998.0,57997.0,0.21326582]
[1720795848407,0.20990642,57998.0,57997.0,0.01226582]
[1720795848408,0.38232642,57998.0,57997.0,0.01226582]
[1720795848585,0.344963,57994.0,57993.0,0.01226582]
[1720795848785,0.344963,57994.0,57993.0,0.21226582]
[1720795848786,0.55478142,57994.0,57993.0,0.21226582]
[1720795848985,0.03748742,57994.0,57993.0,0.44767279]
[1720795849192,0.0001,57994.0,57993.0,0.87765614]
[1720795849515,0.0001,57994.0,57993.0,1.13741079]
[1720795849665,0.0001,57994.0,57993.0,1.29448017]
[1720795849887,0.0001,57998.0,57997.0,1.13027782]
[1720795850079,0.0001,57998.0,57997.0,1.12927782]
[1720795850281,0.0001,57998.0,57997.0,1.13535096]
[1720795850861,0.03827539,57998.0,57997.0,0.21933896]
[1720795851046,0.21069439,57998.0,57997.0,0.21933896]
[1720795851183,0.03827539,57998.0,57997.0,0.21933896]
[1720795851591,0.04123892,57998.0,57997.0,0.21933896]
[1720795851815,0.04123892,57998.0,57997.0,0.21733896]
[1720795852024,0.04123892,57998.0,57997.0,0.27123896]
[1720795852224,0.04123892,57998.0,57997.0,0.44366096]
[1720795852433,0.03927539,57998.0,57997.0,0.44466096]
[1720795852630,0.03909003,57998.0,57997.0,0.78950596]
[1720795852833,0.04009003,57998.0,57997.0,0.79350596]
[1720795853230,0.04011471,57998.0,57997.0,0.79350596]
[1720795853863,0.04011471,57998.0,57997.0,1.13835096]
[1720795854976,0.0398079,57998.0,57997.0,1.13835096]
[1720795855974,0.0398079,57998.0,57997.0,1.08445096]
[1720795856177,0.0398079,57998.0,57997.0,0.73960596]
[1720795856386,0.2440044,57998.0,57997.0,0.01207314]
[1720795856603,0.9081049,57998.0,57997.0,0.01207314]
[1720795856767,1.35681723,57998.0,57997.0,0.01207314]
[1720795856969,1.35681723,57998.0,57997.0,0.005]
[1720795857168,1.51764851,57998.0,57997.0,0.005]
[1720795857957,1.35061723,57998.0,57997.0,0.005]
[1720795858357,0.862172,57993.0,57992.0,0.0046]
[1720795858467,0.89997558,57993.0,57992.0,0.0046]
[1720795858690,0.21023758,57993.0,57992.0,0.0046]
[1720795858924,0.21023758,57993.0,57992.0,0.20967337]
[1720795859125,0.21023758,57993.0,57992.0,0.01167337]
[1720795859328,0.55510658,57993.0,57992.0,0.01167337]
[1720795859748,0.55510658,57993.0,57992.0,0.02393919]
[1720795859749,0.5553135,57993.0,57992.0,0.02393919]
[1720795859971,0.5563135,57993.0,57992.0,0.02693919]
[1720795860291,1.37052148,57993.0,57992.0,0.01467337]
[1720795860492,1.48068173,57993.0,57992.0,0.01467337]
[1720795860694,1.48068173,57993.0,57992.0,0.0076]
[1720795861596,1.47348173,57993.0,57992.0,0.0046]
[1720795861807,1.35507898,57993.0,57992.0,0.0046]
[1720795862114,1.2403509,57993.0,57992.0,0.0046]
[1720795862271,1.2403509,57993.0,57992.0,0.0086]
[1720795862272,1.36891288,57993.0,57992.0,0.0086]
[1720795862449,0.75846565,57993.0,57992.0,0.0086]
[1720795862650,1.02604388,57993.0,57992.0,0.009513]
[1720795862869,1.02604388,57993.0,57992.0,0.01259714]
[1720795862870,1.15653632,57993.0,57992.0,0.01259714]
[1720795863071,1.50523532,57993.0,57992.0,0.01259714]
[1720795863272,1.6144287,57993.0,57992.0,0.005513]
[1720795863668,1.50843532,57993.0,57992.0,0.005513]
[1720795863874,1.63729741,57993.0,57992.0,0.005513]
[1720795864074,1.50843532,57993.0,57992.0,0.006513]
[1720795864270,1.63109741,57993.0,57992.0,0.006513]
[1720795864442,1.49759043,57993.0,57992.0,0.006513]
[1720795864648,1.12696212,57993.0,57992.0,0.006513]
[1720795864929,1.12696212,57993.0,57992.0,0.008513]
[1720795865115,1.12696279,57993.0,57992.0,0.006513]
[1720795865327,1.03432909,57993.0,57992.0,0.01359714]